Workbook

Sheet ххх
B1: 1 | C1: 2 | D1: 3 | E1: 4 | F1: 5 | G1: 6 | H1: 7 | I1: 8 | J1: 9 | K1: 10 | L1: 11 | M1: 12 | N1: 13 | O1: 14 | P1: 15 | Q1: 16 | R1: 17 | S1: 18 | T1: 19 | U1: 20 | V1: 21 | W1: 22 | X1: 23 | Y1: 24 | Z1: 25 | AA1: 26 | AB1: 27 | AC1: 28 | AD1: 29 | AE1: 30 | AF1: 31 | AG1: 32 | AH1: 33 | AI1: 34 | AJ1: 35 | AK1: 36 | AL1: 37 | AM1: 38 | AN1: 39 | AO1: 40 | AP1: 41 | AQ1: 42
B2: ТАБЛИЦА 2 | AI2: ТАБЛИЦА 1
A4: количество, шт | D4: Наименование изделия | H4: Состав изделия | AC4: цвет деталей | AI4: =IF(AQ4=0,"Изделие не выбрано",(SUM(AQ$4:AQ4))) -> 1 | AJ4: 101 | AK4: Изделие 1 | AL4: =IF(AO4=1,AI4+AP4,0) -> 1.01 | AM4: Деталь 1 | AN4: . | AO4: =IF(AN4=".",1,0) -> 1 | AP4: =IF(AO4=1,0.01,0) -> 0.01 | AQ4: =IF(SUM(AO4:AO8)>0,1,0) -> 1
AC5: 1 | AD5: 2 | AE5: 3 | AF5: 4 | AL5: =IF(AO5=1,AI4+SUM(AP4:AP5),0) -> 1.02 | AM5: Деталь 2 | AN5: . | AO5: 1 | AP5: 0.01
A6: 10 | B6: 1 | C6: =IF(ISNA(VLOOKUP(B6,ххх!$AI$4:$AJ$77,2,FALSE)),"",(VLOOKUP(B6,ххх!$AI$4:$AJ$77,2,FALSE))) -> 101 | D6: =IF(ISNA(VLOOKUP(B6,ххх!$AI$4:$AK$77,3,FALSE)),"",(VLOOKUP(B6,ххх!$AI$4:$AK$77,3,FALSE))) -> Изделие 1 | G6: 1.01 | H6: =IF(ISNA(VLOOKUP(G6,ххх!$AL$4:$AM$77,2,FALSE)),"",(VLOOKUP(G6,ххх!$AL$4:$AM$77,2,FALSE))) -> Деталь 1 | AF6: . | AL6: =IF(AO6=1,AI4+SUM(AP4:AP6),0) -> 1.03 | AM6: Деталь 3 | AN6: . | AO6: 1 | AP6: 0.01
G7: 1.02 | H7: =IF(ISNA(VLOOKUP(G7,ххх!$AL$4:$AM$77,2,FALSE)),"",(VLOOKUP(G7,ххх!$AL$4:$AM$77,2,FALSE))) -> Деталь 2 | AD7: . | AL7: =IF(AO7=1,AI4+SUM(AP4:AP7),0) -> 1.04 | AM7: Деталь 4 | AN7: . | AO7: 1 | AP7: 0.01
G8: 1.03 | H8: =IF(ISNA(VLOOKUP(G8,ххх!$AL$4:$AM$77,2,FALSE)),"",(VLOOKUP(G8,ххх!$AL$4:$AM$77,2,FALSE))) -> Деталь 3 | AD8: . | AL8: =IF(AO8=1,AI4+SUM(AP4:AP8),0) -> 1.05 | AM8: Деталь 5 | AN8: . | AO8: 1 | AP8: 0.01
G9: 1.04 | H9: =IF(ISNA(VLOOKUP(G9,ххх!$AL$4:$AM$77,2,FALSE)),"",(VLOOKUP(G9,ххх!$AL$4:$AM$77,2,FALSE))) -> Деталь 4 | AD9: . | AI9: =IF(AQ9=0,"Изделие не выбрано",(SUM(AQ$4:AQ9))) -> 2 | AJ9: =AJ4+1 -> 102 | AK9: Изделие 2 | AL9: =IF(AO9=1,AI9+AP9,0) -> 2.01 | AM9: Деталь 6 | AN9: . | AO9: 1 | AP9: 0.01 | AQ9: =IF(SUM(AO9:AO18)>0,1,0) -> 1
G10: 1.05 | H10: =IF(ISNA(VLOOKUP(G10,ххх!$AL$4:$AM$77,2,FALSE)),"",(VLOOKUP(G10,ххх!$AL$4:$AM$77,2,FALSE))) -> Деталь 5 | AD10: . | AL10: =IF(AO10=1,AI9+SUM(AP9:AP10),0) -> 2.02 | AM10: Деталь 7 | AN10: . | AO10: 1 | AP10: 0.01
G11: 1.06 | H11: =IF(ISNA(VLOOKUP(G11,ххх!$AL$4:$AM$77,2,FALSE)),"",(VLOOKUP(G11,ххх!$AL$4:$AM$77,2,FALSE))) ->  | AL11: =IF(AO11=1,AI9+SUM(AP9:AP11),0) -> 2.03 | AM11: Деталь 8 | AN11: . | AO11: 1 | AP11: 0.01
G12: 1.07 | H12: =IF(ISNA(VLOOKUP(G12,ххх!$AL$4:$AM$77,2,FALSE)),"",(VLOOKUP(G12,ххх!$AL$4:$AM$77,2,FALSE))) ->  | AL12: =IF(AO12=1,AI9+SUM(AP9:AP12),0) -> 2.04 | AM12: Деталь 9 | AN12: . | AO12: 1 | AP12: 0.01
G13: 1.08 | H13: =IF(ISNA(VLOOKUP(G13,ххх!$AL$4:$AM$77,2,FALSE)),"",(VLOOKUP(G13,ххх!$AL$4:$AM$77,2,FALSE))) ->  | AL13: =IF(AO13=1,AI9+SUM(AP9:AP13),0) -> 2.05 | AM13: Деталь 10 | AN13: . | AO13: 1 | AP13: 0.01
G14: 1.09 | H14: =IF(ISNA(VLOOKUP(G14,ххх!$AL$4:$AM$77,2,FALSE)),"",(VLOOKUP(G14,ххх!$AL$4:$AM$77,2,FALSE))) ->  | AL14: =IF(AO14=1,AI9+SUM(AP9:AP14),0) -> 2.06 | AM14: Деталь 11 | AN14: . | AO14: 1 | AP14: 0.01
G15: 1.1 | H15: =IF(ISNA(VLOOKUP(G15,ххх!$AL$4:$AM$77,2,FALSE)),"",(VLOOKUP(G15,ххх!$AL$4:$AM$77,2,FALSE))) ->  | AL15: =IF(AO15=1,AI9+SUM(AP9:AP15),0) -> 2.07 | AM15: Деталь 12 | AN15: . | AO15: 1 | AP15: 0.01
A16: 50 | B16: 2 | C16: =IF(ISNA(VLOOKUP(B16,ххх!$AI$4:$AJ$77,2,FALSE)),"",(VLOOKUP(B16,ххх!$AI$4:$AJ$77,2,FALSE))) -> 102 | D16: =IF(ISNA(VLOOKUP(B16,ххх!$AI$4:$AK$77,3,FALSE)),"",(VLOOKUP(B16,ххх!$AI$4:$AK$77,3,FALSE))) -> Изделие 2 | G16: 2.01 | H16: =IF(ISNA(VLOOKUP(G16,ххх!$AL$4:$AM$77,2,FALSE)),"",(VLOOKUP(G16,ххх!$AL$4:$AM$77,2,FALSE))) -> Деталь 6 | AC16: . | AL16: =IF(AO16=1,AI9+SUM(AP9:AP16),0) -> 2.08 | AM16: Деталь 13 | AN16: . | AO16: 1 | AP16: 0.01
G17: 2.02 | H17: =IF(ISNA(VLOOKUP(G17,ххх!$AL$4:$AM$77,2,FALSE)),"",(VLOOKUP(G17,ххх!$AL$4:$AM$77,2,FALSE))) -> Деталь 7 | AC17: . | AL17: =IF(AO17=1,AI9+SUM(AP9:AP17),0) -> 2.09 | AM17: Деталь 14 | AN17: . | AO17: 1 | AP17: 0.01
G18: 2.03 | H18: =IF(ISNA(VLOOKUP(G18,ххх!$AL$4:$AM$77,2,FALSE)),"",(VLOOKUP(G18,ххх!$AL$4:$AM$77,2,FALSE))) -> Деталь 8 | AD18: . | AL18: =IF(AO18=1,AI9+SUM(AP9:AP18),0) -> 2.1 | AM18: Деталь 15 | AN18: . | AO18: 1 | AP18: 0.01
G19: 2.04 | H19: =IF(ISNA(VLOOKUP(G19,ххх!$AL$4:$AM$77,2,FALSE)),"",(VLOOKUP(G19,ххх!$AL$4:$AM$77,2,FALSE))) -> Деталь 9 | AD19: . | AI19: =IF(AQ19=0,"Изделие не выбрано",(SUM(AQ$4:AQ19))) -> 3 | AJ19: =AJ9+1 -> 103 | AK19: Изделие 3 | AL19: =IF(AO19=1,AI19+AP19,0) -> 3.01 | AM19: Деталь 16 | AN19: . | AO19: 1 | AP19: 0.01 | AQ19: =IF(SUM(AO19:AO27)>0,1,0) -> 1
G20: 2.05 | H20: =IF(ISNA(VLOOKUP(G20,ххх!$AL$4:$AM$77,2,FALSE)),"",(VLOOKUP(G20,ххх!$AL$4:$AM$77,2,FALSE))) -> Деталь 10 | AD20: . | AL20: =IF(AO20=1,AI19+SUM(AP19:AP20),0) -> 3.02 | AM20: Деталь 17 | AN20: . | AO20: 1 | AP20: 0.01
G21: 2.06 | H21: =IF(ISNA(VLOOKUP(G21,ххх!$AL$4:$AM$77,2,FALSE)),"",(VLOOKUP(G21,ххх!$AL$4:$AM$77,2,FALSE))) -> Деталь 11 | AE21: . | AL21: =IF(AO21=1,AI19+SUM(AP19:AP21),0) -> 3.03 | AM21: Деталь 18 | AN21: . | AO21: 1 | AP21: 0.01
G22: 2.07 | H22: =IF(ISNA(VLOOKUP(G22,ххх!$AL$4:$AM$77,2,FALSE)),"",(VLOOKUP(G22,ххх!$AL$4:$AM$77,2,FALSE))) -> Деталь 12 | AD22: . | AL22: =IF(AO22=1,AI19+SUM(AP19:AP22),0) -> 3.04 | AM22: Деталь 19 | AN22: . | AO22: 1 | AP22: 0.01
G23: 2.08 | H23: =IF(ISNA(VLOOKUP(G23,ххх!$AL$4:$AM$77,2,FALSE)),"",(VLOOKUP(G23,ххх!$AL$4:$AM$77,2,FALSE))) -> Деталь 13 | AE23: . | AL23: =IF(AO23=1,AI19+SUM(AP19:AP23),0) -> 3.05 | AM23: Деталь 20 | AN23: . | AO23: 1 | AP23: 0.01
G24: 2.09 | H24: =IF(ISNA(VLOOKUP(G24,ххх!$AL$4:$AM$77,2,FALSE)),"",(VLOOKUP(G24,ххх!$AL$4:$AM$77,2,FALSE))) -> Деталь 14 | AE24: . | AL24: =IF(AO24=1,AI19+SUM(AP19:AP24),0) -> 3.06 | AM24: Деталь 21 | AN24: . | AO24: 1 | AP24: 0.01
G25: 2.1 | H25: =IF(ISNA(VLOOKUP(G25,ххх!$AL$4:$AM$77,2,FALSE)),"",(VLOOKUP(G25,ххх!$AL$4:$AM$77,2,FALSE))) -> Деталь 15 | AF25: . | AL25: =IF(AO25=1,AI19+SUM(AP19:AP25),0) -> 3.07 | AM25: Деталь 22 | AN25: . | AO25: 1 | AP25: 0.01
A26: 40 | B26: 3 | C26: =IF(ISNA(VLOOKUP(B26,ххх!$AI$4:$AJ$77,2,FALSE)),"",(VLOOKUP(B26,ххх!$AI$4:$AJ$77,2,FALSE))) -> 103 | D26: =IF(ISNA(VLOOKUP(B26,ххх!$AI$4:$AK$77,3,FALSE)),"",(VLOOKUP(B26,ххх!$AI$4:$AK$77,3,FALSE))) -> Изделие 3 | G26: 3.01 | H26: =IF(ISNA(VLOOKUP(G26,ххх!$AL$4:$AM$77,2,FALSE)),"",(VLOOKUP(G26,ххх!$AL$4:$AM$77,2,FALSE))) -> Деталь 16 | AC26: . | AL26: =IF(AO26=1,AI19+SUM(AP19:AP26),0) -> 3.08 | AM26: Деталь 23 | AN26: . | AO26: 1 | AP26: 0.01
G27: 3.02 | H27: =IF(ISNA(VLOOKUP(G27,ххх!$AL$4:$AM$77,2,FALSE)),"",(VLOOKUP(G27,ххх!$AL$4:$AM$77,2,FALSE))) -> Деталь 17 | AD27: . | AL27: =IF(AO27=1,AI19+SUM(AP19:AP27),0) -> 3.09 | AM27: Деталь 24 | AN27: . | AO27: 1 | AP27: 0.01
G28: 3.03 | H28: =IF(ISNA(VLOOKUP(G28,ххх!$AL$4:$AM$77,2,FALSE)),"",(VLOOKUP(G28,ххх!$AL$4:$AM$77,2,FALSE))) -> Деталь 18 | AD28: . | AI28: =IF(AQ28=0,"Изделие не выбрано",(SUM(AQ$4:AQ28))) -> 4 | AJ28: =AJ19+1 -> 104 | AK28: изделие 4 | AL28: =IF(AO28=1,AI28+AP28,0) -> 4.01 | AM28: Деталь 25 | AN28: . | AO28: 1 | AP28: 0.01 | AQ28: =IF(SUM(AO28:AO35)>0,1,0) -> 1
G29: 3.04 | H29: =IF(ISNA(VLOOKUP(G29,ххх!$AL$4:$AM$77,2,FALSE)),"",(VLOOKUP(G29,ххх!$AL$4:$AM$77,2,FALSE))) -> Деталь 19 | AE29: . | AL29: =IF(AO29=1,AI28+SUM(AP28:AP29),0) -> 4.02 | AM29: Деталь 26 | AN29: . | AO29: 1 | AP29: 0.01
G30: 3.05 | H30: =IF(ISNA(VLOOKUP(G30,ххх!$AL$4:$AM$77,2,FALSE)),"",(VLOOKUP(G30,ххх!$AL$4:$AM$77,2,FALSE))) -> Деталь 20 | AE30: . | AL30: =IF(AO30=1,AI28+SUM(AP28:AP30),0) -> 4.03 | AM30: Деталь 27 | AN30: . | AO30: 1 | AP30: 0.01
G31: 3.06 | H31: =IF(ISNA(VLOOKUP(G31,ххх!$AL$4:$AM$77,2,FALSE)),"",(VLOOKUP(G31,ххх!$AL$4:$AM$77,2,FALSE))) -> Деталь 21 | AF31: . | AL31: =IF(AO31=1,AI28+SUM(AP28:AP31),0) -> 4.04 | AM31: Деталь 28 | AN31: . | AO31: 1 | AP31: 0.01
G32: 3.07 | H32: =IF(ISNA(VLOOKUP(G32,ххх!$AL$4:$AM$77,2,FALSE)),"",(VLOOKUP(G32,ххх!$AL$4:$AM$77,2,FALSE))) -> Деталь 22 | AE32: . | AL32: =IF(AO32=1,AI28+SUM(AP28:AP32),0) -> 4.05 | AM32: Деталь 29 | AN32: . | AO32: 1 | AP32: 0.01
G33: 3.08 | H33: =IF(ISNA(VLOOKUP(G33,ххх!$AL$4:$AM$77,2,FALSE)),"",(VLOOKUP(G33,ххх!$AL$4:$AM$77,2,FALSE))) -> Деталь 23 | AE33: . | AL33: =IF(AO33=1,AI28+SUM(AP28:AP33),0) -> 4.06 | AM33: Деталь 30 | AN33: . | AO33: 1 | AP33: 0.01
G34: 3.09 | H34: =IF(ISNA(VLOOKUP(G34,ххх!$AL$4:$AM$77,2,FALSE)),"",(VLOOKUP(G34,ххх!$AL$4:$AM$77,2,FALSE))) -> Деталь 24 | AE34: . | AL34: =IF(AO34=1,AI28+SUM(AP28:AP34),0) -> 4.07 | AM34: Деталь 31 | AN34: . | AO34: 1 | AP34: 0.01
G35: 3.1 | H35: =IF(ISNA(VLOOKUP(G35,ххх!$AL$4:$AM$77,2,FALSE)),"",(VLOOKUP(G35,ххх!$AL$4:$AM$77,2,FALSE))) ->  | AL35: =IF(AO35=1,AI28+SUM(AP28:AP35),0) -> 4.08 | AM35: Деталь 32 | AN35: . | AO35: 1 | AP35: 0.01
A36: 20 | B36: 4 | C36: =IF(ISNA(VLOOKUP(B36,ххх!$AI$4:$AJ$77,2,FALSE)),"",(VLOOKUP(B36,ххх!$AI$4:$AJ$77,2,FALSE))) -> 104 | D36: =IF(ISNA(VLOOKUP(B36,ххх!$AI$4:$AK$77,3,FALSE)),"",(VLOOKUP(B36,ххх!$AI$4:$AK$77,3,FALSE))) -> изделие 4 | G36: 4.01 | H36: =IF(ISNA(VLOOKUP(G36,ххх!$AL$4:$AM$77,2,FALSE)),"",(VLOOKUP(G36,ххх!$AL$4:$AM$77,2,FALSE))) -> Деталь 25 | AE36: . | AI36: =IF(AQ36=0,"Изделие не выбрано",(SUM(AQ$4:AQ36))) -> 5 | AJ36: =AJ28+1 -> 105 | AK36: Изделие 5 | AL36: =IF(AO36=1,AI36+AP36,0) -> 5.01 | AM36: Деталь 33 | AN36: . | AO36: =IF(AN36=".",1,0) -> 1 | AP36: =IF(AO36=1,0.01,0) -> 0.01 | AQ36: =IF(SUM(AO36:AO45)>0,1,0) -> 1
G37: 4.02 | H37: =IF(ISNA(VLOOKUP(G37,ххх!$AL$4:$AM$77,2,FALSE)),"",(VLOOKUP(G37,ххх!$AL$4:$AM$77,2,FALSE))) -> Деталь 26 | AF37: . | AL37: =IF(AO37=1,AI36+SUM(AP36:AP37),0) -> 5.02 | AM37: Деталь 34 | AN37: . | AO37: 1 | AP37: 0.01
G38: 4.03 | H38: =IF(ISNA(VLOOKUP(G38,ххх!$AL$4:$AM$77,2,FALSE)),"",(VLOOKUP(G38,ххх!$AL$4:$AM$77,2,FALSE))) -> Деталь 27 | AD38: . | AL38: =IF(AO38=1,AI36+SUM(AP36:AP38),0) -> 5.03 | AM38: Деталь 35 | AN38: . | AO38: 1 | AP38: 0.01
G39: 4.04 | H39: =IF(ISNA(VLOOKUP(G39,ххх!$AL$4:$AM$77,2,FALSE)),"",(VLOOKUP(G39,ххх!$AL$4:$AM$77,2,FALSE))) -> Деталь 28 | AC39: . | AL39: =IF(AO39=1,AI36+SUM(AP36:AP39),0) -> 5.04 | AM39: Деталь 36 | AN39: . | AO39: 1 | AP39: 0.01
G40: 4.05 | H40: =IF(ISNA(VLOOKUP(G40,ххх!$AL$4:$AM$77,2,FALSE)),"",(VLOOKUP(G40,ххх!$AL$4:$AM$77,2,FALSE))) -> Деталь 29 | AC40: . | AL40: =IF(AO40=1,AI36+SUM(AP36:AP40),0) -> 5.05 | AM40: Деталь 37 | AN40: . | AO40: 1 | AP40: 0.01
G41: 4.06 | H41: =IF(ISNA(VLOOKUP(G41,ххх!$AL$4:$AM$77,2,FALSE)),"",(VLOOKUP(G41,ххх!$AL$4:$AM$77,2,FALSE))) -> Деталь 30 | AD41: . | AL41: =IF(AO41=1,AI36+SUM(AP36:AP41),0) -> 5.06 | AM41: Деталь 38 | AN41: . | AO41: 1 | AP41: 0.01
G42: 4.07 | H42: =IF(ISNA(VLOOKUP(G42,ххх!$AL$4:$AM$77,2,FALSE)),"",(VLOOKUP(G42,ххх!$AL$4:$AM$77,2,FALSE))) -> Деталь 31 | AE42: . | AL42: =IF(AO42=1,AI36+SUM(AP36:AP42),0) -> 5.07 | AM42: Деталь 39 | AN42: . | AO42: 1 | AP42: 0.01
G43: 4.08 | H43: =IF(ISNA(VLOOKUP(G43,ххх!$AL$4:$AM$77,2,FALSE)),"",(VLOOKUP(G43,ххх!$AL$4:$AM$77,2,FALSE))) -> Деталь 32 | AF43: . | AL43: =IF(AO43=1,AI36+SUM(AP36:AP43),0) -> 5.08 | AM43: Деталь 40 | AN43: . | AO43: 1 | AP43: 0.01
G44: 4.09 | H44: =IF(ISNA(VLOOKUP(G44,ххх!$AL$4:$AM$77,2,FALSE)),"",(VLOOKUP(G44,ххх!$AL$4:$AM$77,2,FALSE))) ->  | AL44: =IF(AO44=1,AI36+SUM(AP36:AP44),0) -> 5.09 | AM44: Деталь 41 | AN44: . | AO44: 1 | AP44: 0.01
G45: 4.1 | H45: =IF(ISNA(VLOOKUP(G45,ххх!$AL$4:$AM$77,2,FALSE)),"",(VLOOKUP(G45,ххх!$AL$4:$AM$77,2,FALSE))) ->  | AL45: =IF(AO45=1,AI36+SUM(AP36:AP45),0) -> 5.1 | AM45: Деталь 42 | AN45: . | AO45: 1 | AP45: 0.01
A46: 12 | B46: 5 | C46: =IF(ISNA(VLOOKUP(B46,ххх!$AI$4:$AJ$77,2,FALSE)),"",(VLOOKUP(B46,ххх!$AI$4:$AJ$77,2,FALSE))) -> 105 | D46: =IF(ISNA(VLOOKUP(B46,ххх!$AI$4:$AK$77,3,FALSE)),"",(VLOOKUP(B46,ххх!$AI$4:$AK$77,3,FALSE))) -> Изделие 5 | G46: 5.01 | H46: =IF(ISNA(VLOOKUP(G46,ххх!$AL$4:$AM$77,2,FALSE)),"",(VLOOKUP(G46,ххх!$AL$4:$AM$77,2,FALSE))) -> Деталь 33 | AC46: . | AI46: =IF(AQ46=0,"Изделие не выбрано",(SUM(AQ$4:AQ46))) -> 6 | AJ46: =AJ36+1 -> 106 | AK46: Изделие 6 | AL46: =IF(AO46=1,AI46+AP46,0) -> 6.01 | AM46: Деталь 43 | AN46: . | AO46: 1 | AP46: 0.01 | AQ46: =IF(SUM(AO46:AO53)>0,1,0) -> 1
G47: 5.02 | H47: =IF(ISNA(VLOOKUP(G47,ххх!$AL$4:$AM$77,2,FALSE)),"",(VLOOKUP(G47,ххх!$AL$4:$AM$77,2,FALSE))) -> Деталь 34 | AC47: . | AL47: =IF(AO47=1,AI46+SUM(AP46:AP47),0) -> 6.02 | AM47: Деталь 44 | AN47: . | AO47: 1 | AP47: 0.01
G48: 5.03 | H48: =IF(ISNA(VLOOKUP(G48,ххх!$AL$4:$AM$77,2,FALSE)),"",(VLOOKUP(G48,ххх!$AL$4:$AM$77,2,FALSE))) -> Деталь 35 | AC48: . | AL48: =IF(AO48=1,AI46+SUM(AP46:AP48),0) -> 6.03 | AM48: Деталь 45 | AN48: . | AO48: 1 | AP48: 0.01
G49: 5.04 | H49: =IF(ISNA(VLOOKUP(G49,ххх!$AL$4:$AM$77,2,FALSE)),"",(VLOOKUP(G49,ххх!$AL$4:$AM$77,2,FALSE))) -> Деталь 36 | AD49: . | AL49: =IF(AO49=1,AI46+SUM(AP46:AP49),0) -> 6.04 | AM49: Деталь 46 | AN49: . | AO49: 1 | AP49: 0.01
G50: 5.05 | H50: =IF(ISNA(VLOOKUP(G50,ххх!$AL$4:$AM$77,2,FALSE)),"",(VLOOKUP(G50,ххх!$AL$4:$AM$77,2,FALSE))) -> Деталь 37 | AD50: . | AL50: =IF(AO50=1,AI46+SUM(AP46:AP50),0) -> 6.05 | AM50: Деталь 47 | AN50: . | AO50: 1 | AP50: 0.01
G51: 5.06 | H51: =IF(ISNA(VLOOKUP(G51,ххх!$AL$4:$AM$77,2,FALSE)),"",(VLOOKUP(G51,ххх!$AL$4:$AM$77,2,FALSE))) -> Деталь 38 | AE51: . | AL51: =IF(AO51=1,AI46+SUM(AP46:AP51),0) -> 6.06 | AM51: Деталь 48 | AN51: . | AO51: 1 | AP51: 0.01
G52: 5.07 | H52: =IF(ISNA(VLOOKUP(G52,ххх!$AL$4:$AM$77,2,FALSE)),"",(VLOOKUP(G52,ххх!$AL$4:$AM$77,2,FALSE))) -> Деталь 39 | AE52: . | AL52: =IF(AO52=1,AI46+SUM(AP46:AP52),0) -> 6.07 | AM52: Деталь 49 | AN52: . | AO52: 1 | AP52: 0.01
G53: 5.08 | H53: =IF(ISNA(VLOOKUP(G53,ххх!$AL$4:$AM$77,2,FALSE)),"",(VLOOKUP(G53,ххх!$AL$4:$AM$77,2,FALSE))) -> Деталь 40 | AE53: . | AL53: =IF(AO53=1,AI46+SUM(AP46:AP53),0) -> 6.08 | AM53: Деталь 50 | AN53: . | AO53: 1 | AP53: 0.01
G54: 5.09 | H54: =IF(ISNA(VLOOKUP(G54,ххх!$AL$4:$AM$77,2,FALSE)),"",(VLOOKUP(G54,ххх!$AL$4:$AM$77,2,FALSE))) -> Деталь 41 | AE54: . | AI54: =IF(AQ54=0,"Изделие не выбрано",(SUM(AQ$4:AQ54))) -> Изделие не выбрано | AJ54: =AJ46+1 -> 107 | AK54: Изделие 7 | AL54: =IF(AO54=1,AI54+AP54,0) -> 0 | AM54: Деталь 51 | AO54: 0 | AP54: 0 | AQ54: =IF(SUM(AO54:AO60)>0,1,0) -> 0
G55: 5.1 | H55: =IF(ISNA(VLOOKUP(G55,ххх!$AL$4:$AM$77,2,FALSE)),"",(VLOOKUP(G55,ххх!$AL$4:$AM$77,2,FALSE))) -> Деталь 42 | AL55: =IF(AO55=1,AI54+SUM(AP54:AP55),0) -> 0 | AM55: Деталь 52 | AO55: 0 | AP55: 0
A56: 15 | B56: 6 | C56: =IF(ISNA(VLOOKUP(B56,ххх!$AI$4:$AJ$77,2,FALSE)),"",(VLOOKUP(B56,ххх!$AI$4:$AJ$77,2,FALSE))) -> 106 | D56: =IF(ISNA(VLOOKUP(B56,ххх!$AI$4:$AK$77,3,FALSE)),"",(VLOOKUP(B56,ххх!$AI$4:$AK$77,3,FALSE))) -> Изделие 6 | G56: 6.01 | H56: =IF(ISNA(VLOOKUP(G56,ххх!$AL$4:$AM$77,2,FALSE)),"",(VLOOKUP(G56,ххх!$AL$4:$AM$77,2,FALSE))) -> Деталь 43 | AE56: . | AL56: =IF(AO56=1,AI54+SUM(AP54:AP56),0) -> 0 | AM56: Деталь 53 | AO56: 0 | AP56: 0
G57: 6.02 | H57: =IF(ISNA(VLOOKUP(G57,ххх!$AL$4:$AM$77,2,FALSE)),"",(VLOOKUP(G57,ххх!$AL$4:$AM$77,2,FALSE))) -> Деталь 44 | AD57: . | AL57: =IF(AO57=1,AI54+SUM(AP54:AP57),0) -> 0 | AM57: Деталь 54 | AO57: 0 | AP57: 0
G58: 6.03 | H58: =IF(ISNA(VLOOKUP(G58,ххх!$AL$4:$AM$77,2,FALSE)),"",(VLOOKUP(G58,ххх!$AL$4:$AM$77,2,FALSE))) -> Деталь 45 | AC58: . | AL58: =IF(AO58=1,AI54+SUM(AP54:AP58),0) -> 0 | AM58: Деталь 55 | AO58: 0 | AP58: 0
G59: 6.04 | H59: =IF(ISNA(VLOOKUP(G59,ххх!$AL$4:$AM$77,2,FALSE)),"",(VLOOKUP(G59,ххх!$AL$4:$AM$77,2,FALSE))) -> Деталь 46 | AD59: . | AL59: =IF(AO59=1,AI54+SUM(AP54:AP59),0) -> 0 | AM59: Деталь 56 | AO59: 0 | AP59: 0
G60: 6.05 | H60: =IF(ISNA(VLOOKUP(G60,ххх!$AL$4:$AM$77,2,FALSE)),"",(VLOOKUP(G60,ххх!$AL$4:$AM$77,2,FALSE))) -> Деталь 47 | AD60: . | AL60: =IF(AO60=1,AI54+SUM(AP54:AP60),0) -> 0 | AM60: Деталь 57 | AO60: 0 | AP60: 0
G61: 6.06 | H61: =IF(ISNA(VLOOKUP(G61,ххх!$AL$4:$AM$77,2,FALSE)),"",(VLOOKUP(G61,ххх!$AL$4:$AM$77,2,FALSE))) -> Деталь 48 | AE61: . | AI61: =IF(AQ61=0,"Изделие не выбрано",(SUM(AQ$4:AQ61))) -> 7 | AJ61: =AJ54+1 -> 108 | AK61: Изделие 8 | AL61: =IF(AO61=1,AI61+AP61,0) -> 7.01 | AM61: Деталь 58 | AN61: . | AO61: 1 | AP61: 0.01 | AQ61: =IF(SUM(AO61:AO66)>0,1,0) -> 1
G62: 6.07 | H62: =IF(ISNA(VLOOKUP(G62,ххх!$AL$4:$AM$77,2,FALSE)),"",(VLOOKUP(G62,ххх!$AL$4:$AM$77,2,FALSE))) -> Деталь 49 | AE62: . | AL62: =IF(AO62=1,AI61+SUM(AP61:AP62),0) -> 7.02 | AM62: Деталь 59 | AN62: . | AO62: 1 | AP62: 0.01
G63: 6.08 | H63: =IF(ISNA(VLOOKUP(G63,ххх!$AL$4:$AM$77,2,FALSE)),"",(VLOOKUP(G63,ххх!$AL$4:$AM$77,2,FALSE))) -> Деталь 50 | AE63: . | AL63: =IF(AO63=1,AI61+SUM(AP61:AP63),0) -> 7.03 | AM63: Деталь 60 | AN63: . | AO63: 1 | AP63: 0.01
G64: 6.09 | H64: =IF(ISNA(VLOOKUP(G64,ххх!$AL$4:$AM$77,2,FALSE)),"",(VLOOKUP(G64,ххх!$AL$4:$AM$77,2,FALSE))) ->  | AL64: =IF(AO64=1,AI61+SUM(AP61:AP64),0) -> 7.04 | AM64: Деталь 61 | AN64: . | AO64: 1 | AP64: 0.01
G65: 6.1 | H65: =IF(ISNA(VLOOKUP(G65,ххх!$AL$4:$AM$77,2,FALSE)),"",(VLOOKUP(G65,ххх!$AL$4:$AM$77,2,FALSE))) ->  | AL65: =IF(AO65=1,AI61+SUM(AP61:AP65),0) -> 7.05 | AM65: Деталь 62 | AN65: . | AO65: 1 | AP65: 0.01
A66: 16 | B66: 7 | C66: =IF(ISNA(VLOOKUP(B66,ххх!$AI$4:$AJ$77,2,FALSE)),"",(VLOOKUP(B66,ххх!$AI$4:$AJ$77,2,FALSE))) -> 108 | D66: =IF(ISNA(VLOOKUP(B66,ххх!$AI$4:$AK$77,3,FALSE)),"",(VLOOKUP(B66,ххх!$AI$4:$AK$77,3,FALSE))) -> Изделие 8 | G66: 7.01 | H66: =IF(ISNA(VLOOKUP(G66,ххх!$AL$4:$AM$77,2,FALSE)),"",(VLOOKUP(G66,ххх!$AL$4:$AM$77,2,FALSE))) -> Деталь 58 | AF66: . | AL66: =IF(AO66=1,AI61+SUM(AP61:AP66),0) -> 7.06 | AM66: Деталь 63 | AN66: . | AO66: 1 | AP66: 0.01
G67: 7.02 | H67: =IF(ISNA(VLOOKUP(G67,ххх!$AL$4:$AM$77,2,FALSE)),"",(VLOOKUP(G67,ххх!$AL$4:$AM$77,2,FALSE))) -> Деталь 59 | AE67: . | AI67: =IF(AQ67=0,"Изделие не выбрано",(SUM(AQ$4:AQ67))) -> 8 | AJ67: =AJ61+1 -> 109 | AK67: Изделие 9 | AL67: =IF(AO67=1,AI67+AP67,0) -> 8.01 | AM67: Деталь 64 | AN67: . | AO67: 1 | AP67: 0.01 | AQ67: =IF(SUM(AO67:AO72)>0,1,0) -> 1
G68: 7.03 | H68: =IF(ISNA(VLOOKUP(G68,ххх!$AL$4:$AM$77,2,FALSE)),"",(VLOOKUP(G68,ххх!$AL$4:$AM$77,2,FALSE))) -> Деталь 60 | AF68: . | AL68: =IF(AO68=1,AI67+SUM(AP67:AP68),0) -> 8.02 | AM68: Деталь 65 | AN68: . | AO68: =IF(AN68=".",1,0) -> 1 | AP68: =IF(AO68=1,0.01,0) -> 0.01
G69: 7.04 | H69: =IF(ISNA(VLOOKUP(G69,ххх!$AL$4:$AM$77,2,FALSE)),"",(VLOOKUP(G69,ххх!$AL$4:$AM$77,2,FALSE))) -> Деталь 61 | AE69: . | AL69: =IF(AO69=1,AI67+SUM(AP67:AP69),0) -> 8.03 | AM69: Деталь 66 | AN69: . | AO69: 1 | AP69: 0.01
G70: 7.05 | H70: =IF(ISNA(VLOOKUP(G70,ххх!$AL$4:$AM$77,2,FALSE)),"",(VLOOKUP(G70,ххх!$AL$4:$AM$77,2,FALSE))) -> Деталь 62 | AD70: . | AL70: =IF(AO70=1,AI67+SUM(AP67:AP70),0) -> 8.04 | AM70: Деталь 67 | AN70: . | AO70: 1 | AP70: 0.01
G71: 7.06 | H71: =IF(ISNA(VLOOKUP(G71,ххх!$AL$4:$AM$77,2,FALSE)),"",(VLOOKUP(G71,ххх!$AL$4:$AM$77,2,FALSE))) -> Деталь 63 | AC71: . | AL71: =IF(AO71=1,AI67+SUM(AP67:AP71),0) -> 8.05 | AM71: Деталь 68 | AN71: . | AO71: 1 | AP71: 0.01
G72: 7.07 | H72: =IF(ISNA(VLOOKUP(G72,ххх!$AL$4:$AM$77,2,FALSE)),"",(VLOOKUP(G72,ххх!$AL$4:$AM$77,2,FALSE))) ->  | AL72: =IF(AO72=1,AI67+SUM(AP67:AP72),0) -> 8.06 | AM72: Деталь 69 | AN72: . | AO72: 1 | AP72: 0.01
G73: 7.08 | H73: =IF(ISNA(VLOOKUP(G73,ххх!$AL$4:$AM$77,2,FALSE)),"",(VLOOKUP(G73,ххх!$AL$4:$AM$77,2,FALSE))) ->  | AI73: =IF(AQ73=0,"Изделие не выбрано",(SUM(AQ$4:AQ73))) -> 9 | AJ73: =AJ67+1 -> 110 | AK73: Изделие 10 | AL73: =IF(AO73=1,AI73+AP73,0) -> 9.01 | AM73: Деталь 70 | AN73: . | AO73: 1 | AP73: 0.01 | AQ73: =IF(SUM(AO73:AO77)>0,1,0) -> 1
G74: 7.09 | H74: =IF(ISNA(VLOOKUP(G74,ххх!$AL$4:$AM$77,2,FALSE)),"",(VLOOKUP(G74,ххх!$AL$4:$AM$77,2,FALSE))) ->  | AL74: =IF(AO74=1,AI73+SUM(AP73:AP74),0) -> 9.02 | AM74: Деталь 71 | AN74: . | AO74: 1 | AP74: 0.01
G75: 7.1 | H75: =IF(ISNA(VLOOKUP(G75,ххх!$AL$4:$AM$77,2,FALSE)),"",(VLOOKUP(G75,ххх!$AL$4:$AM$77,2,FALSE))) ->  | AL75: =IF(AO75=1,AI73+SUM(AP73:AP75),0) -> 9.03 | AM75: Деталь 72 | AN75: . | AO75: 1 | AP75: 0.01
A76: 7 | B76: 8 | C76: =IF(ISNA(VLOOKUP(B76,ххх!$AI$4:$AJ$77,2,FALSE)),"",(VLOOKUP(B76,ххх!$AI$4:$AJ$77,2,FALSE))) -> 109 | D76: =IF(ISNA(VLOOKUP(B76,ххх!$AI$4:$AK$77,3,FALSE)),"",(VLOOKUP(B76,ххх!$AI$4:$AK$77,3,FALSE))) -> Изделие 9 | G76: 8.01 | H76: =IF(ISNA(VLOOKUP(G76,ххх!$AL$4:$AM$77,2,FALSE)),"",(VLOOKUP(G76,ххх!$AL$4:$AM$77,2,FALSE))) -> Деталь 64 | AF76: . | AL76: =IF(AO76=1,AI73+SUM(AP73:AP76),0) -> 9.04 | AM76: Деталь 73 | AN76: . | AO76: 1 | AP76: 0.01
G77: 8.02 | H77: =IF(ISNA(VLOOKUP(G77,ххх!$AL$4:$AM$77,2,FALSE)),"",(VLOOKUP(G77,ххх!$AL$4:$AM$77,2,FALSE))) -> Деталь 65 | AE77: . | AL77: =IF(AO77=1,AI73+SUM(AP73:AP77),0) -> 9.05 | AM77: Деталь 74 | AN77: . | AO77: 1 | AP77: 0.01
G78: 8.03 | H78: =IF(ISNA(VLOOKUP(G78,ххх!$AL$4:$AM$77,2,FALSE)),"",(VLOOKUP(G78,ххх!$AL$4:$AM$77,2,FALSE))) -> Деталь 66 | AD78: .
G79: 8.04 | H79: =IF(ISNA(VLOOKUP(G79,ххх!$AL$4:$AM$77,2,FALSE)),"",(VLOOKUP(G79,ххх!$AL$4:$AM$77,2,FALSE))) -> Деталь 67 | AE79: .
G80: 8.05 | H80: =IF(ISNA(VLOOKUP(G80,ххх!$AL$4:$AM$77,2,FALSE)),"",(VLOOKUP(G80,ххх!$AL$4:$AM$77,2,FALSE))) -> Деталь 68 | AD80: .
G81: 8.06 | H81: =IF(ISNA(VLOOKUP(G81,ххх!$AL$4:$AM$77,2,FALSE)),"",(VLOOKUP(G81,ххх!$AL$4:$AM$77,2,FALSE))) -> Деталь 69 | AE81: .
G82: 8.07 | H82: =IF(ISNA(VLOOKUP(G82,ххх!$AL$4:$AM$77,2,FALSE)),"",(VLOOKUP(G82,ххх!$AL$4:$AM$77,2,FALSE))) -> 
G83: 8.08 | H83: =IF(ISNA(VLOOKUP(G83,ххх!$AL$4:$AM$77,2,FALSE)),"",(VLOOKUP(G83,ххх!$AL$4:$AM$77,2,FALSE))) -> 
G84: 8.09 | H84: =IF(ISNA(VLOOKUP(G84,ххх!$AL$4:$AM$77,2,FALSE)),"",(VLOOKUP(G84,ххх!$AL$4:$AM$77,2,FALSE))) -> 
G85: 8.1 | H85: =IF(ISNA(VLOOKUP(G85,ххх!$AL$4:$AM$77,2,FALSE)),"",(VLOOKUP(G85,ххх!$AL$4:$AM$77,2,FALSE))) -> 
A86: 30 | B86: 9 | C86: =IF(ISNA(VLOOKUP(B86,ххх!$AI$4:$AJ$77,2,FALSE)),"",(VLOOKUP(B86,ххх!$AI$4:$AJ$77,2,FALSE))) -> 110 | D86: =IF(ISNA(VLOOKUP(B86,ххх!$AI$4:$AK$77,3,FALSE)),"",(VLOOKUP(B86,ххх!$AI$4:$AK$77,3,FALSE))) -> Изделие 10 | G86: 9.01 | H86: =IF(ISNA(VLOOKUP(G86,ххх!$AL$4:$AM$77,2,FALSE)),"",(VLOOKUP(G86,ххх!$AL$4:$AM$77,2,FALSE))) -> Деталь 70 | AF86: .
G87: 9.02 | H87: =IF(ISNA(VLOOKUP(G87,ххх!$AL$4:$AM$77,2,FALSE)),"",(VLOOKUP(G87,ххх!$AL$4:$AM$77,2,FALSE))) -> Деталь 71 | AE87: .
G88: 9.03 | H88: =IF(ISNA(VLOOKUP(G88,ххх!$AL$4:$AM$77,2,FALSE)),"",(VLOOKUP(G88,ххх!$AL$4:$AM$77,2,FALSE))) -> Деталь 72 | AC88: .
G89: 9.04 | H89: =IF(ISNA(VLOOKUP(G89,ххх!$AL$4:$AM$77,2,FALSE)),"",(VLOOKUP(G89,ххх!$AL$4:$AM$77,2,FALSE))) -> Деталь 73 | AD89: .
G90: 9.05 | H90: =IF(ISNA(VLOOKUP(G90,ххх!$AL$4:$AM$77,2,FALSE)),"",(VLOOKUP(G90,ххх!$AL$4:$AM$77,2,FALSE))) -> Деталь 74 | AD90: .
G91: 9.06 | H91: =IF(ISNA(VLOOKUP(G91,ххх!$AL$4:$AM$77,2,FALSE)),"",(VLOOKUP(G91,ххх!$AL$4:$AM$77,2,FALSE))) -> 
G92: 9.07 | H92: =IF(ISNA(VLOOKUP(G92,ххх!$AL$4:$AM$77,2,FALSE)),"",(VLOOKUP(G92,ххх!$AL$4:$AM$77,2,FALSE))) -> 
G93: 9.08 | H93: =IF(ISNA(VLOOKUP(G93,ххх!$AL$4:$AM$77,2,FALSE)),"",(VLOOKUP(G93,ххх!$AL$4:$AM$77,2,FALSE))) -> 
G94: 9.09 | H94: =IF(ISNA(VLOOKUP(G94,ххх!$AL$4:$AM$77,2,FALSE)),"",(VLOOKUP(G94,ххх!$AL$4:$AM$77,2,FALSE))) -> 
G95: 9.1 | H95: =IF(ISNA(VLOOKUP(G95,ххх!$AL$4:$AM$77,2,FALSE)),"",(VLOOKUP(G95,ххх!$AL$4:$AM$77,2,FALSE))) -> 
B96: 10 | C96: =IF(ISNA(VLOOKUP(B96,ххх!$AI$4:$AJ$77,2,FALSE)),"",(VLOOKUP(B96,ххх!$AI$4:$AJ$77,2,FALSE))) ->  | D96: =IF(ISNA(VLOOKUP(B96,ххх!$AI$4:$AK$77,3,FALSE)),"",(VLOOKUP(B96,ххх!$AI$4:$AK$77,3,FALSE))) ->  | G96: 10.01 | H96: =IF(ISNA(VLOOKUP(G96,ххх!$AL$4:$AM$77,2,FALSE)),"",(VLOOKUP(G96,ххх!$AL$4:$AM$77,2,FALSE))) -> 
G97: 10.02 | H97: =IF(ISNA(VLOOKUP(G97,ххх!$AL$4:$AM$77,2,FALSE)),"",(VLOOKUP(G97,ххх!$AL$4:$AM$77,2,FALSE))) -> 
G98: 10.03 | H98: =IF(ISNA(VLOOKUP(G98,ххх!$AL$4:$AM$77,2,FALSE)),"",(VLOOKUP(G98,ххх!$AL$4:$AM$77,2,FALSE))) -> 
G99: 10.04 | H99: =IF(ISNA(VLOOKUP(G99,ххх!$AL$4:$AM$77,2,FALSE)),"",(VLOOKUP(G99,ххх!$AL$4:$AM$77,2,FALSE))) -> 
G100: 10.05 | H100: =IF(ISNA(VLOOKUP(G100,ххх!$AL$4:$AM$77,2,FALSE)),"",(VLOOKUP(G100,ххх!$AL$4:$AM$77,2,FALSE))) -> 
G101: 10.06 | H101: =IF(ISNA(VLOOKUP(G101,ххх!$AL$4:$AM$77,2,FALSE)),"",(VLOOKUP(G101,ххх!$AL$4:$AM$77,2,FALSE))) -> 
G102: 10.07 | H102: =IF(ISNA(VLOOKUP(G102,ххх!$AL$4:$AM$77,2,FALSE)),"",(VLOOKUP(G102,ххх!$AL$4:$AM$77,2,FALSE))) -> 
G103: 10.08 | H103: =IF(ISNA(VLOOKUP(G103,ххх!$AL$4:$AM$77,2,FALSE)),"",(VLOOKUP(G103,ххх!$AL$4:$AM$77,2,FALSE))) -> 
G104: 10.09 | H104: =IF(ISNA(VLOOKUP(G104,ххх!$AL$4:$AM$77,2,FALSE)),"",(VLOOKUP(G104,ххх!$AL$4:$AM$77,2,FALSE))) -> 
G105: 10.1 | H105: =IF(ISNA(VLOOKUP(G105,ххх!$AL$4:$AM$77,2,FALSE)),"",(VLOOKUP(G105,ххх!$AL$4:$AM$77,2,FALSE))) -> 
